bitfinex/quotes_ETHUSD_20250623
["timestamp","ask_amount","ask_price","bid_price","bid_amount"]
[1750643280499,1.894,2242.2,2242.0,0.0609]
[1750643280666,1.894,2242.2,2242.0,4.5908159]
[1750643281491,1.894,2242.2,2242.0,4.6517159]
[1750643281813,1.894,2242.2,2242.0,4.5908159]
[1750643282294,1.894,2242.2,2242.0,4.6517159]
[1750643282469,1.894,2242.2,2242.0,5.24672463]
[1750643282797,1.894,2242.2,2242.0,5.18582463]
[1750643283373,1.9519,2242.2,2242.0,5.18582463]
[1750643283569,1.894,2242.2,2242.0,5.18582463]
[1750643283867,1.894,2242.2,2242.0,0.59500873]
[1750643284623,1.894,2242.2,2241.9,4.5908159]
[1750643284624,9.124,2242.3,2242.1,0.51858246]
[1750643285213,9.124,2242.3,2242.1,5.10939836]
[1750643285508,9.124,2242.3,2242.2,4.5908159]
[1750643285805,1.893,2242.3,2242.2,4.5908159]
[1750643286107,1.9509,2242.3,2242.2,4.5908159]
[1750643287033,1.893,2242.3,2242.2,5.16265574]
[1750643287233,15.0,2243.2,2242.2,5.16265574]
[1750643287234,1.0097841,2243.5,2242.7,0.55]
[1750643287407,0.2208841,2243.5,2243.0,0.8004]
[1750643287606,0.2208841,2243.5,2243.1,1.12199015]
[1750643287795,0.2208841,2243.5,2243.2,0.0609]
[1750643287997,0.2208841,2243.5,2243.1,1.12199015]
[1750643288197,0.0579,2243.4,2243.1,1.12199015]
[1750643288403,0.0579,2243.4,2243.0,0.8004]
[1750643288723,2.1717841,2243.5,2243.1,1.340365]
[1750643289012,2.1138841,2243.5,2243.1,1.340365]
[1750643289216,2.1138841,2243.5,2243.2,0.10547533]
[1750643289423,0.2208841,2243.5,2243.2,0.04457533]
[1750643289579,0.2208841,2243.5,2243.2,11.76853403]
[1750643289783,0.2208841,2243.5,2243.2,1.76853403]
[1750643289986,0.2208841,2243.5,2243.3,0.0609]
[1750643290213,0.2208841,2243.5,2243.3,0.50982981]
[1750643290385,0.2208841,2243.5,2243.4,0.8226]
[1750643290592,0.2208841,2243.5,2243.4,13.7631242]
[1750643290796,0.2208841,2243.5,2243.4,13.71855654]
[1750643291883,1.933,2244.5,2243.6,1.382]
[1750643292113,0.0579,2244.4,2243.8,0.0609]
[1750643292323,0.0579,2244.2,2243.6,0.832]
[1750643292623,0.0579,2244.2,2243.3,11.28102981]
[1750643292821,1.932,2244.3,2243.5,0.8321]
[1750643292989,0.0579,2244.2,2243.5,0.8321]
[1750643293388,0.0579,2244.2,2243.6,0.04456251]
[1750643293790,0.0579,2244.2,2243.5,0.8321]
[1750643295294,0.0579,2244.2,2243.5,0.8902]
[1750643295498,0.0579,2244.2,2243.5,12.14971762]
[1750643296105,0.0579,2244.2,2243.5,2.14971762]
[1750643296307,0.0579,2244.2,2243.5,0.8321]
[1750643296903,0.0579,2244.2,2243.3,1.28142981]
[1750643297119,0.0579,2244.2,2243.3,0.8325]
[1750643297922,0.758,2244.1,2243.3,0.8325]
[1750643298123,0.0582,2244.0,2243.3,0.8325]
[1750643298630,0.7931,2243.7,2243.3,0.44554057]
[1750643298828,9.186,2243.6,2242.7,0.0581]
[1750643299136,1.05611,2243.5,2242.7,0.0581]
[1750643299335,1.05611,2243.5,2242.8,1.340365]
[1750643299519,0.0582,2243.4,2242.8,1.340365]
[1750643299848,0.0582,2243.2,2242.6,0.8138]
[1750643300029,1.932,2243.1,2242.6,0.8138]
[1750643300336,1.9902,2243.1,2242.6,2.0292165]
[1750643300545,1.932,2243.1,2242.6,0.8138]
[1750643300838,0.0582,2243.0,2242.6,0.8138]
[1750643301333,1.932,2243.1,2242.6,1.2620189]
[1750643301499,0.0582,2243.0,2242.6,0.4482189]
[1750643301696,1.340365,2244.3,2243.3,0.7947]
[1750643301900,1.340365,2244.3,2242.7,8.89058941]
[1750643301901,1.340365,2244.3,2243.7,10.0581]
[1750643302145,1.340365,2244.3,2243.9,0.0581]
[1750643302294,1.340365,2244.3,2243.8,2.04776015]
[1750643302500,1.9902,2244.2,2243.5,0.8528]
[1750643302696,1.9902,2244.2,2243.9,1.340121]
[1750643303129,1.932,2244.2,2243.9,1.340121]
[1750643303336,1.932,2244.2,2243.9,1.398221]
[1750643303932,1.932,2244.2,2243.9,1.340121]
[1750643304132,0.7931,2244.6,2244.0,0.8516]
[1750643304336,1.932,2244.5,2244.0,0.8516]
[1750643304733,0.0582,2244.4,2244.0,0.7935]
[1750643304936,0.0582,2244.4,2244.0,1.24368301]
[1750643305546,17.6961614,2258.8,2244.9,4.45436819]
[1750643305547,0.7647,2246.2,2244.9,4.45436819]
[1750643305737,0.8229,2246.2,2245.5,0.0581]
[1750643306057,0.8229,2246.2,2245.5,0.10262822]
[1750643306536,2.2478841,2245.7,2245.6,1.338996]
[1750643307303,0.2208841,2245.7,2245.6,1.338996]
[1750643307725,0.2790841,2245.7,2245.1,0.8516]
[1750643307924,2.027,2245.6,2245.1,0.8516]
[1750643308302,2.027,2245.6,2245.1,2.190823]
[1750643308508,2.027,2245.6,2245.1,3.4649053]
[1750643309140,2.027,2245.5,2245.1,3.4649053]
[1750643309834,2.027,2245.5,2245.2,10.0]
[1750643310151,2.0852,2245.5,2245.2,10.0]
[1750643310347,2.027,2245.5,2245.2,10.0]
[1750643310552,2.027,2245.5,2245.2,11.44422676]
[1750643310752,0.2208841,2245.7,2245.3,0.0581]
[1750643310926,2.026,2245.6,2245.3,0.10263009]
[1750643311131,2.026,2245.6,2245.3,0.0581]
[1750643312037,2.026,2245.6,2245.2,11.44422676]
[1750643312244,2.026,2245.6,2245.2,11.38612676]
[1750643312927,2.0842,2245.6,2245.2,11.38612676]
[1750643313846,0.0582,2245.5,2245.2,11.38612676]
[1750643314042,0.0582,2245.4,2244.4,0.8109]
[1750643314255,0.0582,2245.0,2244.0,0.8109]
[1750643314551,0.0582,2244.7,2243.8,0.8109]
[1750643315137,0.0582,2244.7,2243.7,0.0581]
[1750643315624,0.0582,2244.6,2243.7,0.0581]
[1750643316077,0.0582,2244.6,2243.7,10.0581]
[1750643316236,0.0582,2244.6,2243.7,10.51539202]
[1750643316436,10.0,2245.1,2243.7,10.45729202]
[1750643316646,2.026,2245.6,2245.1,0.0581]
[1750643316823,2.026,2245.6,2245.3,10.0]
[1750643317153,2.026,2245.6,2245.5,0.0581]
[1750643318556,0.2208841,2245.7,2245.5,0.0581]
[1750643318717,2.026,2245.6,2245.5,0.0581]
[1750643319118,2.026,2245.6,2245.5,0.5025841]
[1750643319373,2.026,2245.6,2245.5,1.24671254]
[1750643319580,2.026,2245.6,2245.1,1.89340239]
[1750643319774,2.026,2245.6,2245.1,1.95150239]
[1750643319920,2.026,2245.6,2245.1,0.0581]
[1750643320247,2.026,2245.6,2245.1,1.397293]
[1750643320447,2.026,2245.6,2245.1,0.0581]
[1750643320650,2.026,2245.6,2245.2,0.04453263]
[1750643321324,2.026,2245.6,2245.2,0.48767792]
[1750643321819,2.026,2245.6,2245.2,0.54577792]
[1750643322748,2.026,2245.6,2245.2,1.75391501]
[1750643322929,2.0842,2245.6,2245.2,1.70938238]
[1750643323356,2.026,2245.6,2245.3,0.04453262]
[1750643326374,2.026,2245.5,2245.4,0.0612]
[1750643326753,2.026,2245.5,2245.2,1.77058238]
[1750643327086,2.026,2245.5,2245.3,11.98691063]
[1750643327475,2.026,2245.5,2245.4,4.5908159]
[1750643328278,0.2208841,2245.7,2245.4,4.5908159]
[1750643328483,2.026,2245.6,2245.4,4.63534655]
[1750643328881,2.026,2245.5,2245.4,4.63534655]
[1750643329179,2.026,2245.5,2245.4,4.5908159]
[1750643329478,0.2208841,2245.7,2245.4,4.5908159]
[1750643329684,2.026,2245.5,2245.4,4.5908159]
[1750643330247,2.026,2245.5,2245.4,6.42564679]
[1750643330454,2.026,2245.5,2245.4,6.48684679]
[1750643330654,2.026,2245.5,2245.4,6.42564679]
[1750643331151,0.2208841,2245.7,2245.4,6.48684679]
[1750643331357,2.026,2245.6,2245.4,6.48684679]
[1750643331656,0.2208841,2245.7,2245.5,1.64868468]
[1750643331866,2.026,2245.6,2245.5,1.64868468]
[1750643332477,0.2208841,2245.7,2245.5,1.64868468]
[1750643332685,2.026,2245.6,2245.5,1.64868468]
[1750643333864,0.2208841,2245.7,2245.5,1.64868468]
[1750643334077,2.026,2245.6,2245.5,1.70988468]
[1750643336107,2.026,2245.6,2245.5,1.64868468]
[1750643336700,2.026,2245.6,2245.5,1.70988468]
[1750643337864,0.2208841,2245.7,2245.6,0.0612]
[1750643338067,2.2748841,2245.7,2245.6,0.36046693]
[1750643338299,2.2748841,2245.7,2245.6,0.31594137]
[1750643338605,0.2208841,2245.7,2245.6,0.31594137]
[1750643338808,0.0612,2247.5,2245.8,0.8799]
[1750643338965,0.0612,2246.9,2246.2,10.8187]
[1750643339163,8.1541,2247.0,2246.3,0.04451055]
[1750643339490,7.361,2247.0,2246.6,0.0612]
[1750643339799,0.0612,2246.9,2246.2,12.157143]
[1750643340207,0.0612,2247.2,2246.3,0.55]
[1750643340383,9.416,2247.1,2246.4,1.2768343]
[1750643340597,9.416,2247.1,2246.4,1.3380343]
[1750643341113,0.0612,2247.2,2246.4,1.3380343]
[1750643341406,9.415,2247.1,2246.5,4.5908159]
[1750643342072,9.412,2247.0,2246.5,4.5908159]
[1750643342271,9.412,2247.0,2246.6,0.59288502]
[1750643342511,0.0612,2246.9,2246.6,1.0456871]
[1750643342684,9.412,2247.0,2246.6,1.0456871]
[1750643342886,9.4732,2247.0,2246.6,1.0456871]
[1750643343285,9.412,2247.0,2246.6,1.0456871]
[1750643343474,0.0612,2246.9,2246.6,0.45280208]
[1750643343817,0.0612,2247.2,2246.6,0.0612]
[1750643344110,0.0612,2247.2,2246.6,0.55539657]
[1750643344407,9.41,2247.1,2246.7,0.8529]
[1750643344626,2.054,2247.0,2246.7,0.8529]
[1750643344909,2.054,2247.0,2246.5,14.6520159]
[1750643345071,2.054,2247.0,2246.5,17.13392331]
[1750643345601,2.054,2247.0,2246.5,17.07272331]
[1750643345806,9.409,2247.0,2246.6,0.0612]
[1750643346695,9.4702,2247.0,2246.7,4.5908159]
[1750643346878,9.409,2247.0,2246.8,4.5908159]
[1750643347207,9.409,2247.0,2246.9,4.5908159]
[1750643349822,9.4702,2247.0,2246.9,4.5908159]
[1750643351317,11.20022,2247.0,2246.9,4.5908159]
[1750643351694,11.19022,2247.0,2246.9,4.5908159]
[1750643352198,11.19122,2247.0,2246.9,4.5908159]
[1750643352998,10.2442,2247.0,2246.9,4.5908159]
[1750643353412,10.182,2247.0,2246.9,4.5908159]
[1750643353915,10.18,2247.0,2246.9,4.5908159]
[1750643355736,10.2391,2247.0,2246.9,4.5908159]
[1750643357930,10.2391,2247.0,2245.7,10.36971493]
[1750643357931,0.7931,2246.9,2246.6,4.5908159]
[1750643358093,0.7931,2246.7,2246.6,4.5908159]
[1750643358420,0.8522,2246.7,2246.6,4.5908159]
[1750643358918,0.8522,2246.7,2246.1,1.44174853]
[1750643358919,9.393,2246.7,2246.5,0.0585]
[1750643359134,1.0139841,2247.9,2246.9,0.7677]
[1750643359294,1.0139841,2247.9,2247.6,10.36971493]
[1750643359490,1.0139841,2247.9,2247.4,0.8262]
[1750643359736,1.0139841,2247.9,2247.5,0.10298889]
[1750643359889,2.053,2247.8,2247.5,0.0585]
[1750643360306,2.053,2247.8,2247.4,1.2674217]
[1750643360525,2.053,2247.8,2247.4,1.31191256]
[1750643360693,2.053,2247.8,2247.6,10.36971493]
[1750643360891,2.053,2247.8,2247.7,0.0585]
[1750643361330,2.053,2247.8,2247.5,1.396439]
[1750643361628,2.053,2247.8,2247.6,0.0585]
[1750643362335,2.053,2248.6,2247.9,0.7677]
[1750643362518,2.8461,2248.6,2247.9,0.7677]
[1750643362694,2.9052,2248.6,2247.9,0.7677]
[1750643363292,2.053,2248.5,2247.9,0.7677]
[1750643363496,7.392,2248.4,2248.0,0.0585]
[1750643363926,2.053,2248.3,2248.0,0.04447841]
[1750643364133,2.053,2248.3,2248.0,0.0585]
[1750643364628,2.052,2248.2,2248.0,0.0585]
[1750643365498,2.1111,2248.2,2247.7,0.8115]
[1750643365806,9.439,2248.1,2247.7,0.8115]
[1750643366202,9.439,2248.1,2247.5,1.396439]
[1750643366203,9.4981,2248.1,2247.5,2.218439]
[1750643366621,9.439,2248.1,2247.5,2.218439]
[1750643367231,9.439,2248.1,2247.5,2.159939]
[1750643367434,1.89053,2248.0,2247.4,0.4412217]
[1750643367635,1.89053,2248.0,2247.3,0.8178]
[1750643368347,1.83143,2248.0,2247.3,0.8178]
[1750643368517,1.89053,2248.0,2247.3,0.8178]
[1750643368716,0.0591,2247.9,2247.1,2.183668]
[1750643368941,1.192053,2247.9,2247.1,0.8457]
[1750643369441,1.192053,2247.9,2247.2,4.5908159]
[1750643369644,10.696,2247.8,2247.2,5.04382444]
[1750643369828,0.0591,2247.6,2247.0,1.338088]
[1750643370035,9.5481,2247.5,2247.0,1.338088]
[1750643370432,9.489,2247.5,2247.0,1.338088]
[1750643370630,0.8457,2247.4,2246.6,10.847]
[1750643370945,0.7866,2247.4,2246.7,0.04450282]
[1750643371364,0.7866,2247.4,2246.8,0.0585]
[1750643371513,0.7866,2247.4,2246.9,0.04450103]
[1750643371713,0.7866,2247.4,2246.9,0.55226753]
[1750643372149,9.488,2247.3,2246.9,0.55226753]
[1750643373248,9.488,2247.3,2247.0,0.0585]
[1750643373616,9.488,2247.3,2246.9,0.49376753]
[1750643373816,10.58047,2247.3,2246.9,0.4492665]
[1750643374017,10.58047,2247.3,2246.7,8.06756159]
[1750643374344,9.488,2247.3,2246.7,8.06756159]
[1750643375175,9.488,2247.3,2246.8,4.5908159]
[1750643375338,9.5471,2247.3,2246.8,4.5908159]
[1750643375660,9.5471,2247.3,2246.9,4.5908159]
[1750643375959,9.5471,2247.3,2247.0,4.5908159]
[1750643376262,9.5471,2247.3,2247.1,4.5908159]
[1750643376469,9.5471,2247.3,2247.2,4.5908159]
[1750643378749,10.58047,2247.3,2247.2,4.5908159]
[1750643378950,0.0591,2247.2,2246.8,4.5908159]
[1750643380634,0.0591,2247.2,2246.9,4.5908159]
[1750643381342,0.0591,2247.2,2247.0,4.5908159]
[1750643381550,0.72722099,2247.2,2247.0,4.5908159]
[1750643383228,10.696,2247.8,2247.1,4.6490159]
[1750643383464,9.476,2247.7,2247.4,0.0582]
[1750643383763,2.103,2247.7,2247.6,8.06756159]
[1750643383930,2.103,2247.7,2247.6,13.52907749]
[1750643384126,2.103,2247.7,2247.6,14.22484602]
[1750643384457,2.103,2247.7,2247.6,16.51422967]
[1750643384661,9.474,2248.1,2247.7,0.0582]
[1750643384831,9.474,2248.1,2248.0,11.24394524]
[1750643385044,2.103,2248.1,2248.0,11.24394524]
[1750643385630,2.103,2248.1,2247.8,0.0582]
[1750643385832,2.103,2248.1,2247.9,0.0582]
[1750643387479,2.103,2248.1,2248.0,0.0582]
[1750643388983,2.103,2248.1,2248.0,0.50275828]
[1750643389342,2.103,2248.1,2248.0,0.0582]
[1750643389670,2.103,2248.1,2248.0,4.6490159]
[1750643389857,2.103,2248.1,2248.0,6.0398354]
[1750643390169,2.103,2248.1,2248.0,5.9816354]
[1750643390368,2.103,2248.1,2248.0,4.5908159]
[1750643390581,2.103,2248.1,2248.0,4.6490159]
[1750643391042,2.103,2248.1,2248.0,4.5908159]
[1750643392550,2.103,2248.1,2248.0,5.04655607]
[1750643395778,2.103,2248.1,2248.0,0.45574017]
[1750643395980,2.103,2248.1,2247.8,4.6490159]
[1750643396287,2.103,2248.1,2247.9,4.6490159]
[1750643397064,2.103,2248.1,2247.9,5.08880008]
[1750643397771,2.103,2248.1,2247.9,5.03060008]
[1750643398447,0.0583,2248.0,2247.7,1.337718]
[1750643398852,0.0583,2247.9,2247.7,1.337718]
[1750643399052,0.0583,2247.9,2247.3,0.761]
[1750643399248,0.0583,2247.9,2247.4,1.88891878]
[1750643399462,0.0583,2247.9,2247.4,1.94711878]
[1750643399683,0.0583,2247.9,2247.4,2.39488329]
[1750643399887,0.7661,2248.0,2247.4,0.44776451]
[1750643400180,0.8244,2248.0,2247.3,4.6490159]
[1750643403359,0.8244,2248.0,2247.4,4.5908159]
[1750643403779,0.8244,2248.0,2247.4,5.02926777]
[1750643403978,0.8244,2248.0,2247.5,4.5908159]
[1750643403979,0.7661,2248.0,2247.5,4.5908159]
[1750643404182,0.779,2248.2,2247.7,0.0582]
[1750643404502,0.779,2248.4,2247.9,8.12818776]
[1750643404670,9.406,2248.3,2248.0,0.04447758]
[1750643404870,9.406,2248.3,2248.1,0.0582]
[1750643405075,9.406,2248.3,2248.0,0.7665]
[1750643405076,9.407,2248.3,2248.0,0.7665]
[1750643405271,2.061,2248.3,2248.2,8.12818776]
[1750643405687,10.697,2248.6,2248.3,0.0582]
[1750643405993,2.061,2248.7,2248.6,0.0582]
[1750643406211,1.33714,2250.6,2248.7,0.8247]
[1750643406388,0.779,2250.3,2249.6,0.8247]
[1750643406573,0.779,2250.3,2249.6,0.0582]
[1750643406574,0.2791841,2250.1,2249.6,0.0582]
[1750643406918,0.2791841,2250.1,2248.9,0.7665]
[1750643406919,0.0583,2249.8,2248.9,0.7665]
[1750643407066,0.0583,2249.6,2249.0,0.45319468]
[1750643407265,0.0583,2249.3,2248.4,1.39534]
[1750643407573,0.0583,2249.1,2248.3,0.7665]
[1750643407780,0.7587,2249.1,2248.2,0.0582]
[1750643408088,0.34027,2249.0,2248.1,1.76729678]
[1750643408284,7.37,2248.9,2248.1,0.88364878]
[1750643408478,7.37,2248.9,2248.0,0.8227]
[1750643408873,0.7828,2248.8,2248.0,0.8227]
[1750643409073,10.2138,2248.8,2248.0,2.160191]
[1750643409800,10.2721,2248.8,2248.0,2.160191]
[1750643411004,10.2138,2248.8,2248.1,0.0582]
[1750643411205,10.2138,2248.8,2248.1,0.51264217]
[1750643411448,10.2138,2248.8,2248.2,0.26146332]
[1750643412092,10.2721,2248.8,2248.2,0.26146332]
[1750643412694,10.2721,2248.8,2248.1,0.0582]
[1750643414704,10.2721,2248.8,2248.1,0.49531269]
[1750643414904,10.2721,2248.8,2248.1,0.43711269]
[1750643415106,10.0,2248.7,2247.7,0.8672]
[1750643415317,0.7931,2248.5,2247.7,0.8672]
[1750643415519,0.0605,2248.4,2247.7,2.204912]
[1750643415715,0.7931,2248.2,2247.7,1.337712]
[1750643415917,0.7931,2248.2,2247.4,0.8672]
[1750643415918,7.356,2248.1,2247.4,0.8672]
[1750643416120,7.356,2248.1,2247.5,1.337849]
[1750643416298,7.356,2248.1,2247.5,2.5583539]
[1750643416630,7.356,2248.1,2247.5,1.65828582]
[1750643416795,7.356,2248.1,2247.5,0.43778092]
[1750643416994,7.356,2248.1,2247.4,0.8672]
[1750643417302,7.356,2248.1,2247.4,2.205103]
[1750643417622,7.356,2248.1,2247.5,4.5908159]
[1750643418432,7.356,2248.1,2247.6,4.5908159]
[1750643418632,0.0605,2247.9,2247.6,4.5908159]
[1750643418932,0.82096,2248.0,2247.7,4.5908159]
[1750643418933,2.8763,2247.8,2247.7,4.5908159]
[1750643419130,2.8763,2247.8,2247.3,4.5908159]
[1750643419518,0.0605,2247.7,2247.3,4.5908159]
[1750643419830,0.0605,2247.7,2246.8,0.778]
[1750643420028,1.41733,2247.7,2246.8,0.778]
[1750643420228,1.41733,2247.7,2246.9,0.062]
[1750643421533,0.0605,2247.7,2246.9,0.062]
[1750643421845,9.413,2247.6,2246.9,0.062]
[1750643422564,11.4478,2247.8,2246.9,0.1064983]
[1750643422742,11.4478,2247.8,2247.2,0.062]
[1750643422923,9.41,2247.7,2247.2,0.062]
[1750643423121,9.41,2247.7,2247.3,0.062]
[1750643423326,9.41,2247.7,2247.2,0.87510328]
[1750643423928,9.4705,2247.7,2246.9,4.5908159]
[1750643424341,9.4705,2247.7,2246.8,2.178249]
[1750643424547,9.4705,2247.7,2246.8,0.84]
[1750643424747,9.4705,2247.7,2246.9,4.5908159]
[1750643424921,0.0605,2247.6,2247.0,4.5908159]
[1750643425122,0.0605,2247.4,2247.0,4.5908159]
[1750643425314,0.754,2247.5,2247.1,4.5908159]
[1750643425516,0.0605,2247.4,2247.1,4.5908159]
[1750643425850,0.754,2247.5,2247.1,4.5908159]
[1750643428154,0.8145,2247.5,2247.1,4.5908159]
[1750643428657,0.8145,2247.5,2247.2,4.5908159]
[1750643429635,0.754,2247.5,2247.2,4.5908159]
[1750643429927,9.39,2247.4,2247.3,0.52108159]
[1750643430126,9.39,2247.4,2247.3,0.062]
[1750643430356,0.7821,2247.7,2247.3,4.6528159]
[1750643430664,9.39,2247.6,2247.4,4.5908159]
[1750643431031,9.39,2247.6,2247.5,4.5908159]
[1750643432073,10.692,2247.8,2247.5,4.5908159]
[1750643432372,9.388,2247.7,2247.6,5.04989749]
[1750643432727,9.388,2247.7,2247.6,5.11189749]
[1750643433367,9.388,2247.7,2247.6,4.6528159]
[1750643433572,9.388,2247.7,2247.6,4.5908159]
[1750643434461,9.387,2248.1,2247.6,0.7541]
[1750643434651,9.387,2248.1,2247.8,0.062]
[1750643435270,9.387,2248.1,2247.7,10.42457107]
[1750643435481,2.05,2248.1,2247.7,12.00151977]
[1750643435664,7.345,2248.0,2247.7,12.00151977]
[1750643435850,7.345,2248.0,2247.7,11.93951977]
[1750643436049,0.8536,2248.5,2247.8,0.062]
[1750643436274,9.393,2248.4,2247.8,0.062]
[1750643436474,10.41766,2248.4,2247.8,0.062]
[1750643439473,10.47816,2248.4,2247.7,10.36257107]
[1750643440379,10.47816,2248.4,2247.8,4.5908159]
[1750643441859,0.0605,2248.1,2247.9,4.5908159]
[1750643442105,8.1865,2248.0,2247.9,4.5908159]
[1750643442692,10.2375,2248.0,2247.9,4.5908159]
[1750643443002,9.384,2248.0,2247.9,4.5908159]
[1750643444270,1.185426,2248.3,2247.9,4.5908159]
[1750643444475,9.385,2248.2,2247.9,4.5908159]
[1750643444675,11.09231799,2248.2,2247.9,4.5908159]
[1750643445912,11.15061799,2248.2,2247.9,4.5908159]
[1750643446786,11.09231799,2248.2,2247.9,4.5908159]
[1750643446990,0.0583,2248.1,2247.9,4.5908159]
[1750643449192,0.0583,2248.1,2248.0,4.5908159]
[1750643449395,11.9664618,2248.1,2248.0,4.5908159]
[1750643449706,11.9664618,2248.1,2247.3,0.7822]
[1750643449707,10.7931,2248.0,2247.4,4.5908159]
[1750643449876,0.0583,2247.8,2247.4,4.5908159]
[1750643450084,2.049,2247.7,2247.4,4.5908159]
[1750643450282,7.334,2247.6,2247.4,4.5908159]
[1750643450598,7.334,2247.6,2247.5,4.5908159]
[1750643451177,0.7931,2248.0,2247.6,0.0603]
[1750643451383,9.385,2247.9,2247.6,0.0603]
[1750643451582,2.049,2247.8,2247.6,0.0603]
[1750643451802,2.049,2247.8,2247.5,5.3730159]
[1750643452021,2.049,2247.8,2247.6,4.5908159]
[1750643452220,0.9385,2247.7,2247.6,4.5908159]
[1750643452378,0.9968,2247.7,2247.6,4.5908159]
[1750643452987,0.9385,2247.7,2247.6,4.5908159]
[1750643453188,7.336,2247.7,2247.6,4.5908159]
[1750643455418,9.386,2247.7,2247.6,4.5908159]
[1750643458300,0.8514,2248.0,2247.6,4.5908159]
[1750643458502,9.381,2247.9,2247.6,5.4822159]
[1750643458808,10.3191,2247.8,2247.6,5.4219159]
[1750643459012,9.381,2247.8,2247.6,4.5908159]
[1750643460127,9.4393,2247.8,2247.6,4.5908159]
[1750643460334,10.2324,2247.8,2247.6,4.5908159]
[1750643461029,10.2324,2247.8,2247.7,4.5908159]
[1750643467047,10.2324,2247.8,2247.2,4.5908159]
[1750643467653,11.19734,2247.8,2247.2,4.5908159]
[1750643468452,0.0583,2247.7,2247.2,4.5908159]
[1750643468624,10.696,2247.6,2247.2,4.5908159]
[1750643468827,10.696,2247.6,2247.3,4.5908159]
[1750643468828,0.849,2247.4,2247.3,4.5908159]
[1750643470047,2.0035,2247.4,2247.3,4.5908159]
[1750643470431,2.0035,2247.4,2247.1,4.5908159]
[1750643470432,1.9452,2247.4,2247.1,4.5908159]
[1750643470630,9.357,2247.3,2247.1,4.5908159]
[1750643471250,9.357,2247.3,2247.1,4.6511159]
[1750643471765,9.357,2247.3,2247.1,4.5908159]
[1750643472854,10.1246,2247.3,2247.1,4.5908159]
[1750643473158,11.14289,2247.3,2247.1,4.5908159]
[1750643474350,9.357,2247.3,2247.1,4.5908159]
[1750643475859,9.357,2247.3,2247.2,4.5908159]
[1750643476744,10.696,2247.6,2247.2,4.6494159]
[1750643476924,9.352,2247.3,2247.2,4.6494159]
[1750643479760,9.352,2247.3,2247.2,4.5908159]
[1750643480353,9.352,2247.3,2247.2,4.6494159]
[1750643482159,10.696,2247.6,2247.5,0.0586]
[1750643482338,10.696,2247.6,2247.4,0.7976]
[1750643482339,20.04,2247.6,2247.4,0.8562]
[1750643483746,20.8331,2247.6,2247.2,4.5908159]
[1750643483949,0.0605,2247.5,2247.2,4.5908159]
[1750643484246,2.08936,2247.5,2247.2,5.9291599]
[1750643484449,0.0605,2247.4,2247.2,5.9291599]
[1750643484751,7.307,2247.3,2247.2,5.9291599]
[1750643485160,7.307,2247.3,2247.2,4.5908159]
[1750643485864,7.3675,2247.3,2247.2,4.5908159]
[1750643486066,8.11258399,2247.3,2247.2,4.5908159]
[1750643486361,7.307,2247.3,2247.2,4.6494159]
[1750643486564,0.7572,2247.5,2247.2,4.6494159]
[1750643486762,9.342,2247.3,2247.2,4.6494159]
[1750643488035,10.696,2247.6,2247.2,4.6494159]
[1750643488267,10.696,2247.6,2247.5,0.8394]
[1750643488568,20.039,2247.6,2247.5,5.4302159]
[1750643488869,20.04,2247.6,2247.5,5.4302159]
[1750643489232,12.734,2247.6,2247.5,5.4302159]
[1750643489463,20.04,2247.6,2247.5,5.4302159]
[1750643490962,20.04,2247.6,2247.5,4.5908159]
[1750643491128,22.044,2247.6,2247.5,4.5908159]
[1750643491846,20.04,2247.6,2247.5,4.5908159]
[1750643492370,20.45694307,2247.6,2247.5,4.5908159]
[1750643494737,20.42194307,2247.6,2247.5,4.6494159]
[1750643495074,20.42188095,2247.6,2247.5,4.6494159]
[1750643495768,20.42184995,2247.6,2247.5,4.6494159]
[1750643496146,20.42185208,2247.6,2247.5,4.6494159]
[1750643496556,20.4218497,2247.6,2247.5,5.4504159]
[1750643497060,20.42180449,2247.6,2247.5,5.4504159]
[1750643497266,11.11280449,2247.6,2247.5,6.12926809]
[1750643497480,20.001,2247.6,2247.5,6.12926809]
[1750643498471,20.001,2247.6,2247.5,5.3918159]
[1750643498682,20.001,2247.6,2247.5,4.5908159]
[1750643499174,20.001,2247.6,2247.5,4.6494159]
[1750643499475,20.001,2247.6,2247.5,4.5908159]
[1750643502372,20.41762012,2247.6,2247.5,4.5908159]
[1750643502535,20.41762012,2247.6,2247.4,4.5908159]
[1750643502536,23.31903213,2247.6,2247.4,4.5908159]
[1750643502741,0.41662012,2247.5,2247.2,4.5908159]
[1750643502953,7.295,2247.4,2247.2,4.5908159]
[1750643503373,7.295,2247.4,2247.3,4.5908159]
[1750643503694,7.7116649,2247.4,2247.0,1.25449603]
[1750643503837,7.3518,2247.4,2247.0,0.45349603]
[1750643504057,7.295,2247.4,2247.1,0.0575]
[1750643506157,0.41686121,2247.3,2247.1,0.0575]
[1750643506358,7.292,2247.2,2247.1,0.65617029]
[1750643506655,7.292,2247.2,2247.1,0.0575]
[1750643507893,7.292,2247.2,2247.1,1.395821]
[1750643508307,10.696,2247.6,2247.3,0.0575]
[1750643508510,9.71388811,2247.5,2247.3,0.0575]
[1750643508789,0.41688591,2247.4,2247.3,0.0575]
[1750643509173,0.41688591,2247.4,2247.3,4.6483159]
[1750643509360,9.297,2247.5,2247.3,4.6483159]
[1750643509586,0.41688652,2247.4,2247.3,4.6483159]
[1750643509991,9.297,2247.5,2247.3,4.6483159]
[1750643510201,0.41692583,2247.4,2247.3,0.0575]
[1750643510490,0.41692818,2247.4,2247.3,4.8275]
[1750643512010,9.297,2247.5,2247.3,4.8275]
[1750643512186,0.41696848,2247.4,2247.3,4.8275]